[Event "Early-Titled-Tuesday-Blitz-March-05-2024"]
[Site "Chess.com"]
[Date "2024.03.05"]
[Round "5"]
[White "ReadySkate"]
[Black "Cambek64"]
[Result "0-1"]
[WhiteElo "2569"]
[BlackElo "2456"]
[TimeControl "180+1"]
[EndTime "8:59:26 PST"]
[Termination "Cambek64 won by resignation"]

1. d4 {[%clk 0:03:00.9]} 1... c5 {[%clk 0:02:17.6]} 2. d5 {[%clk 0:02:58.7]}
2... e5 {[%clk 0:02:14.4]} 3. Nc3 {[%clk 0:02:58.8]} 3... d6 {[%clk 0:02:14.8]}
4. e4 {[%clk 0:02:59.1]} 4... Nf6 {[%clk 0:02:14.5]} 5. Bb5+ {[%clk 0:02:59.7]}
5... Nbd7 {[%clk 0:02:13.1]} 6. a4 {[%clk 0:03:00.2]} 6... Be7 {[%clk
0:02:12.8]} 7. h3 {[%clk 0:02:59.8]} 7... O-O {[%clk 0:02:13.1]} 8. Nf3 {[%clk
0:02:59.9]} 8... Ne8 {[%clk 0:02:13.5]} 9. O-O {[%clk 0:02:59.7]} 9... g6 {[%clk
0:02:13.8]} 10. Nh2 {[%clk 0:02:57.4]} 10... Ng7 {[%clk 0:02:12.8]} 11. Bxd7
{[%clk 0:02:55.8]} 11... Bxd7 {[%clk 0:02:11.8]} 12. f4 {[%clk 0:02:56.7]} 12...
f6 {[%clk 0:02:01.3]} 13. fxe5 {[%clk 0:02:54.1]} 13... fxe5 {[%clk 0:02:00.6]}
14. Be3 {[%clk 0:02:53]} 14... a6 {[%clk 0:01:58.7]} 15. a5 {[%clk 0:02:52.3]}
15... Bg5 {[%clk 0:01:52.3]} 16. Rxf8+ {[%clk 0:02:50.2]} 16... Kxf8 {[%clk
0:01:52]} 17. Qd2 {[%clk 0:02:50.2]} 17... Bxe3+ {[%clk 0:01:50.5]} 18. Qxe3
{[%clk 0:02:51.1]} 18... Kg8 {[%clk 0:01:50.2]} 19. Nf3 {[%clk 0:02:48.4]} 19...
Qe7 {[%clk 0:01:48.1]} 20. Qh6 {[%clk 0:02:47.1]} 20... Rf8 {[%clk 0:01:47.3]}
21. Ng5 {[%clk 0:02:42.1]} 21... Nh5 {[%clk 0:01:45.7]} 22. Rf1 {[%clk
0:02:36.1]} 22... Rxf1+ {[%clk 0:01:42.7]} 23. Kxf1 {[%clk 0:02:37]} 23... Qg7
{[%clk 0:01:37.6]} 24. Qxg7+ {[%clk 0:02:35.6]} 24... Kxg7 {[%clk 0:01:33]} 25.
Nf3 {[%clk 0:02:35.4]} 25... Nf6 {[%clk 0:01:28.1]} 26. Nd2 {[%clk 0:02:34.6]}
26... Ne8 {[%clk 0:01:27.7]} 27. Nc4 {[%clk 0:02:33.4]} 27... Kf6 {[%clk
0:01:27]} 28. Nb6 {[%clk 0:02:31.6]} 28... Ke7 {[%clk 0:01:23.4]} 29. Ke2 {[%clk
0:02:31.4]} 29... Nf6 {[%clk 0:01:18.7]} 30. b3 {[%clk 0:02:23.7]} 30... Bb5+
{[%clk 0:01:05.9]} 31. Kf3 {[%clk 0:02:07.2]} 31... Kd8 {[%clk 0:00:51.3]} 32.
Nd1 {[%clk 0:01:59]} 32... Nd7 {[%clk 0:00:40.1]} 33. Nxd7 {[%clk 0:01:57.7]}
33... Bxd7 {[%clk 0:00:38.2]} 34. Kg3 {[%clk 0:01:57.3]} 34... g5 {[%clk
0:00:34.2]} 35. Ne3 {[%clk 0:01:56]} 35... h5 {[%clk 0:00:24.8]} 36. h4 {[%clk
0:01:54]} 36... g4 {[%clk 0:00:24.3]} 37. Kf2 {[%clk 0:01:53.2]} 37... Ke7
{[%clk 0:00:20.7]} 38. Nf1 {[%clk 0:01:52.9]} 38... Bb5 {[%clk 0:00:19.2]} 39.
Ng3 {[%clk 0:01:51]} 39... Be8 {[%clk 0:00:18.9]} 40. Nf5+ {[%clk 0:01:51.5]}
40... Kd7 {[%clk 0:00:19.1]} 41. Ke3 {[%clk 0:01:51.2]} 41... Bg6 {[%clk
0:00:19.6]} 42. Ng3 {[%clk 0:01:49.5]} 42... Ke7 {[%clk 0:00:19.4]} 43. Kd2
{[%clk 0:01:48.9]} 43... Kd7 {[%clk 0:00:19.2]} 44. Kc3 {[%clk 0:01:48.3]} 44...
Kc7 {[%clk 0:00:19.4]} 45. b4 {[%clk 0:01:48.4]} 45... b6 {[%clk 0:00:18.8]} 46.
b5 {[%clk 0:01:30.6]} 46... axb5 {[%clk 0:00:18]} 47. a6 {[%clk 0:01:30.9]}
47... b4+ {[%clk 0:00:14.8]} 48. Kd2 {[%clk 0:01:30.7]} 48... b5 {[%clk
0:00:12.8]} 49. Nf5 {[%clk 0:01:30.7]} 49... c4 {[%clk 0:00:12.1]} 50. Nxd6
{[%clk 0:01:29.6]} 50... Kb6 {[%clk 0:00:11.6]} 51. a7 {[%clk 0:01:23.3]} 51...
Kxa7 {[%clk 0:00:10.4]} 52. Nxb5+ {[%clk 0:01:23.9]} 52... Kb6 {[%clk
0:00:11.1]} 53. d6 {[%clk 0:01:20.5]} 53... Be8 {[%clk 0:00:09.4]} 54. Nc7
{[%clk 0:01:20.8]} 54... Bd7 {[%clk 0:00:09.6]} 55. Nd5+ {[%clk 0:01:21.4]}
55... Kc5 {[%clk 0:00:08.5]} 56. Nf6 {[%clk 0:01:21.9]} 56... Kxd6 {[%clk
0:00:08.9]} 57. Nxh5 {[%clk 0:01:22.4]} 57... Bc6 {[%clk 0:00:08.8]} 58. Ng3
{[%clk 0:01:20.2]} 58... Ke6 {[%clk 0:00:08.9]} 59. Ke3 {[%clk 0:01:19.6]} 59...
Kf6 {[%clk 0:00:08.1]} 60. Nf1 {[%clk 0:01:17.4]} 60... c3 {[%clk 0:00:07.1]}
61. g3 {[%clk 0:01:11.9]} 61... Ba4 {[%clk 0:00:06.5]} 62. Nh2 {[%clk 0:01:07]}
62... Bxc2 {[%clk 0:00:06.5]} 63. Nxg4+ {[%clk 0:01:07.3]} 63... Ke6 {[%clk
0:00:07]} 64. h5 {[%clk 0:01:06.2]} 64... b3 {[%clk 0:00:06.8]} 65. h6 {[%clk
0:01:06.4]} 65... Kf7 {[%clk 0:00:06.6]} 66. Nxe5+ {[%clk 0:01:06.5]} 66... Kg8
{[%clk 0:00:06.5]} 67. Nc4 {[%clk 0:00:42.8]} 67... b2 {[%clk 0:00:06.7]} 68.
Na3 {[%clk 0:00:42.8]} 68... Bb3 {[%clk 0:00:06.5]} 69. Kd3 {[%clk 0:00:39.7]}
69... c2 {[%clk 0:00:06.2]} 0-1

[Event "Early-Titled-Tuesday-Blitz-March-05-2024"]
[Site "Chess.com"]
[Date "2024.03.05"]
[Round "5"]
[White "Byniolus"]
[Black "tetrix83"]
[Result "0-1"]
[WhiteElo "2804"]
[BlackElo "2636"]
[TimeControl "180+1"]
[EndTime "8:59:27 PST"]
[Termination "tetrix83 won by resignation"]

1. d4 {[%clk 0:03:00.9]} 1... Nf6 {[%clk 0:02:58.6]} 2. Nf3 {[%clk 0:03:01.1]}
2... g6 {[%clk 0:02:58.1]} 3. Bf4 {[%clk 0:03:01.3]} 3... Bg7 {[%clk 0:02:56.9]}
4. e3 {[%clk 0:03:01.5]} 4... c5 {[%clk 0:02:57]} 5. c3 {[%clk 0:03:01.6]} 5...
Qb6 {[%clk 0:02:56.1]} 6. Qb3 {[%clk 0:03:01.5]} 6... d6 {[%clk 0:02:55]} 7.
Nbd2 {[%clk 0:03:02]} 7... Be6 {[%clk 0:02:53.1]} 8. Bc4 {[%clk 0:03:01.3]} 8...
Bxc4 {[%clk 0:02:47.7]} 9. Nxc4 {[%clk 0:03:02.2]} 9... Qc7 {[%clk 0:02:47.2]}
10. dxc5 {[%clk 0:02:26.8]} 10... Qxc5 {[%clk 0:02:46.9]} 11. Qxb7 {[%clk
0:02:26.6]} 11... O-O {[%clk 0:02:47.4]} 12. Qxa8 {[%clk 0:02:18]} 12... Qxc4
{[%clk 0:02:47.4]} 13. Qxa7 {[%clk 0:01:50.2]} 13... Nd5 {[%clk 0:02:36.7]} 14.
Nd2 {[%clk 0:01:35.4]} 14... Qd3 {[%clk 0:02:26.8]} 15. Bg3 {[%clk 0:00:56.5]}
15... Bxc3 {[%clk 0:02:24.3]} 16. Rd1 {[%clk 0:00:41.7]} 16... Nc6 {[%clk
0:02:14.7]} 17. Qa4 {[%clk 0:00:34.9]} 17... Ncb4 {[%clk 0:02:03.3]} 18. e4
{[%clk 0:00:18.7]} 18... Nc2+ {[%clk 0:01:11.6]} 19. Qxc2 {[%clk 0:00:18.9]}
19... Qxc2 {[%clk 0:01:12.5]} 20. exd5 {[%clk 0:00:19.6]} 20... Qxb2 {[%clk
0:00:59.1]} 21. Bf4 {[%clk 0:00:17.1]} 21... Qxa2 {[%clk 0:00:57.1]} 22. O-O
{[%clk 0:00:17.3]} 22... Qxd5 {[%clk 0:00:54.7]} 23. Nb1 {[%clk 0:00:15.7]}
23... Bd4 {[%clk 0:00:52.4]} 24. Be3 {[%clk 0:00:13.5]} 24... e5 {[%clk
0:00:51.9]} 25. Bxd4 {[%clk 0:00:13.9]} 25... exd4 {[%clk 0:00:51.9]} 26. Nd2
{[%clk 0:00:13.3]} 26... Rc8 {[%clk 0:00:48.3]} 27. Nf3 {[%clk 0:00:12]} 27...
d3 {[%clk 0:00:48.6]} 28. h3 {[%clk 0:00:07.8]} 28... h6 {[%clk 0:00:47.9]} 29.
Rd2 {[%clk 0:00:06.2]} 29... Rc2 {[%clk 0:00:47.8]} 30. Rfd1 {[%clk 0:00:06.9]}
30... Rxd2 {[%clk 0:00:47.7]} 31. Rxd2 {[%clk 0:00:07.8]} 31... Qe4 {[%clk
0:00:44.8]} 32. Kf1 {[%clk 0:00:05.2]} 32... g5 {[%clk 0:00:44.9]} 33. Ne1
{[%clk 0:00:04.6]} 33... Kg7 {[%clk 0:00:44.2]} 34. Rxd3 {[%clk 0:00:05.1]}
34... Qc4 {[%clk 0:00:43.7]} 35. Ke2 {[%clk 0:00:04]} 35... d5 {[%clk 0:00:44]}
36. Nf3 {[%clk 0:00:04.2]} 36... Kf6 {[%clk 0:00:43.4]} 37. Nd2 {[%clk
0:00:02.3]} 37... Qb5 {[%clk 0:00:42.2]} 38. Ke3 {[%clk 0:00:02.9]} 38... Qc5+
{[%clk 0:00:41.5]} 39. Ke2 {[%clk 0:00:03.1]} 39... h5 {[%clk 0:00:40.5]} 40.
Nf3 {[%clk 0:00:04]} 40... g4 {[%clk 0:00:40]} 41. hxg4 {[%clk 0:00:04.9]} 41...
hxg4 {[%clk 0:00:40.5]} 42. Nd4 {[%clk 0:00:05.6]} 42... Qc4 {[%clk 0:00:38.8]}
43. Ke3 {[%clk 0:00:05.2]} 43... Ke5 {[%clk 0:00:37.4]} 44. f4+ {[%clk
0:00:05.5]} 44... Kd6 {[%clk 0:00:32.7]} 45. Nf5+ {[%clk 0:00:05]} 45... Kc5
{[%clk 0:00:31.5]} 46. Nd4 {[%clk 0:00:05.3]} 46... Qc1+ {[%clk 0:00:30.9]} 47.
Ke2 {[%clk 0:00:04]} 47... Qb2+ {[%clk 0:00:30.4]} 48. Ke3 {[%clk 0:00:02.8]}
48... Qxg2 {[%clk 0:00:28.6]} 49. Nb3+ {[%clk 0:00:03.5]} 49... Kd6 {[%clk
0:00:27.9]} 50. Nd4 {[%clk 0:00:02.4]} 50... Qe4+ {[%clk 0:00:26.8]} 51. Kd2
{[%clk 0:00:02.7]} 51... Qxf4+ {[%clk 0:00:26.7]} 52. Kc3 {[%clk 0:00:03.4]}
52... g3 {[%clk 0:00:25.2]} 53. Ne2 {[%clk 0:00:02.5]} 53... Qc4+ {[%clk
0:00:24.2]} 54. Kd2 {[%clk 0:00:02.8]} 54... Qb4+ {[%clk 0:00:21.6]} 55. Kd1
{[%clk 0:00:02.2]} 55... Qa4+ {[%clk 0:00:17.9]} 56. Kd2 {[%clk 0:00:02.5]}
56... Qa2+ {[%clk 0:00:18]} 57. Kd1 {[%clk 0:00:02.5]} 57... Qb1+ {[%clk
0:00:18.1]} 58. Kd2 {[%clk 0:00:03]} 58... g2 {[%clk 0:00:12.8]} 59. Rg3 {[%clk
0:00:03.9]} 59... Qf1 {[%clk 0:00:12.5]} 60. Ke3 {[%clk 0:00:04.5]} 60... f5
{[%clk 0:00:12.1]} 61. Rg6+ {[%clk 0:00:04.5]} 61... Ke5 {[%clk 0:00:11.6]} 62.
Rg5 {[%clk 0:00:05.2]} 62... d4+ {[%clk 0:00:11.4]} 63. Kd2 {[%clk 0:00:04.9]}
63... d3 {[%clk 0:00:09.6]} 64. Kxd3 {[%clk 0:00:04.5]} 64... Ke6 {[%clk
0:00:08.6]} 65. Rg6+ {[%clk 0:00:04.1]} 65... Kf7 {[%clk 0:00:08.6]} 66. Rg3
{[%clk 0:00:04.1]} 66... f4 {[%clk 0:00:08.2]} 67. Rg4 {[%clk 0:00:02.2]} 67...
f3 {[%clk 0:00:08.1]} 68. Rf4+ {[%clk 0:00:02.9]} 68... Ke8 {[%clk 0:00:08]} 0-1

[Event "Early-Titled-Tuesday-Blitz-March-05-2024"]
[Site "Chess.com"]
[Date "2024.03.05"]
[Round "5"]
[White "Vse_po_kaify"]
[Black "GaiozNigalidze"]
[Result "0-1"]
[WhiteElo "2334"]
[BlackElo "2706"]
[TimeControl "180+1"]
[EndTime "8:59:33 PST"]
[Termination "GaiozNigalidze won by resignation"]

1. e4 {[%clk 0:02:59.2]} 1... c5 {[%clk 0:02:59.8]} 2. c4 {[%clk 0:02:59]} 2...
Nc6 {[%clk 0:02:58.6]} 3. Nc3 {[%clk 0:02:59.1]} 3... g6 {[%clk 0:02:59]} 4. g3
{[%clk 0:02:59.6]} 4... Bg7 {[%clk 0:02:59.4]} 5. Bg2 {[%clk 0:03:00.1]} 5... e6
{[%clk 0:02:59.8]} 6. Nge2 {[%clk 0:03:00.4]} 6... Nge7 {[%clk 0:02:59.8]} 7.
O-O {[%clk 0:03:00.9]} 7... d6 {[%clk 0:02:59.7]} 8. d3 {[%clk 0:03:01.5]} 8...
O-O {[%clk 0:02:57.6]} 9. f4 {[%clk 0:03:02]} 9... a6 {[%clk 0:02:57.1]} 10. h3
{[%clk 0:03:02.4]} 10... Rb8 {[%clk 0:02:56.8]} 11. Be3 {[%clk 0:03:02.8]} 11...
Nd4 {[%clk 0:02:47.9]} 12. Qd2 {[%clk 0:03:02.5]} 12... b5 {[%clk 0:02:47.3]}
13. Rab1 {[%clk 0:03:01.3]} 13... Nec6 {[%clk 0:02:46.8]} 14. g4 {[%clk
0:03:00.3]} 14... bxc4 {[%clk 0:02:34]} 15. dxc4 {[%clk 0:03:00.1]} 15... f5
{[%clk 0:02:26.9]} 16. exf5 {[%clk 0:02:58]} 16... gxf5 {[%clk 0:02:21.4]} 17.
g5 {[%clk 0:02:58.1]} 17... Bb7 {[%clk 0:02:17]} 18. Rfd1 {[%clk 0:02:57.5]}
18... Qd7 {[%clk 0:01:56]} 19. a3 {[%clk 0:02:42.8]} 19... e5 {[%clk 0:01:50.3]}
20. Nd5 {[%clk 0:02:39.8]} 20... Nxe2+ {[%clk 0:01:40.9]} 21. Qxe2 {[%clk
0:02:38.5]} 21... Nd4 {[%clk 0:01:40.6]} 22. Qf2 {[%clk 0:02:37.8]} 22... e4
{[%clk 0:01:30.1]} 23. b4 {[%clk 0:02:30.8]} 23... Bxd5 {[%clk 0:01:22.7]} 24.
cxd5 {[%clk 0:02:29.4]} 24... a5 {[%clk 0:01:18]} 25. h4 {[%clk 0:02:27.1]}
25... Qf7 {[%clk 0:01:10.1]} 26. bxc5 {[%clk 0:02:25.2]} 26... dxc5 {[%clk
0:01:11]} 27. d6 {[%clk 0:02:25.5]} 27... Qd5 {[%clk 0:01:01.7]} 28. h5 {[%clk
0:02:24.6]} 28... Qxd6 {[%clk 0:00:58.6]} 29. h6 {[%clk 0:02:24.7]} 29... Bh8
{[%clk 0:00:58.8]} 30. Bf1 {[%clk 0:02:25.2]} 30... Rfd8 {[%clk 0:00:49.6]} 31.
Bc4+ {[%clk 0:02:23.3]} 31... Kf8 {[%clk 0:00:50.1]} 32. Kg2 {[%clk 0:02:14.6]}
32... Rxb1 {[%clk 0:00:33.7]} 33. Rxb1 {[%clk 0:02:13.8]} 33... Rb8 {[%clk
0:00:32.7]} 34. Rd1 {[%clk 0:01:43.8]} 34... Ke7 {[%clk 0:00:27.3]} 35. Qd2
{[%clk 0:01:39.4]} 35... Qb6 {[%clk 0:00:24.4]} 36. Qf2 {[%clk 0:01:33]} 36...
Qb2 {[%clk 0:00:21.7]} 37. Rc1 {[%clk 0:01:27.1]} 37... Qxa3 {[%clk 0:00:18.5]}
38. g6 {[%clk 0:01:10.4]} 38... hxg6 {[%clk 0:00:15]} 39. Rd1 {[%clk 0:01:08.1]}
39... Rb2 {[%clk 0:00:14.1]} 40. Rd2 {[%clk 0:01:07.1]} 40... Rxd2 {[%clk
0:00:13.6]} 41. Bxd2 {[%clk 0:01:07.6]} 41... a4 {[%clk 0:00:07.3]} 42. h7
{[%clk 0:01:07.2]} 42... Qf3+ {[%clk 0:00:06.2]} 43. Qxf3 {[%clk 0:01:07.3]}
43... Nxf3 {[%clk 0:00:04.3]} 44. Bc1 {[%clk 0:01:04.9]} 44... g5 {[%clk
0:00:04.4]} 45. fxg5 {[%clk 0:01:02.9]} 45... Kf8 {[%clk 0:00:03.7]} 46. g6
{[%clk 0:00:55.1]} 46... Bg7 {[%clk 0:00:03.3]} 47. Bh6 {[%clk 0:00:53.8]} 47...
Nh4+ {[%clk 0:00:03.3]} 48. Kf1 {[%clk 0:00:46.1]} 48... Nxg6 {[%clk 0:00:04.2]}
49. Be3 {[%clk 0:00:46.4]} 49... Bd4 {[%clk 0:00:03.4]} 50. Bh6+ {[%clk
0:00:46.7]} 50... Ke7 {[%clk 0:00:03.7]} 51. Ke2 {[%clk 0:00:43.7]} 51... Nh8
{[%clk 0:00:04.6]} 52. Bf4 {[%clk 0:00:42.5]} 52... a3 {[%clk 0:00:04.8]} 53.
Bg5+ {[%clk 0:00:41.9]} 53... Kd6 {[%clk 0:00:05]} 54. Bh6 {[%clk 0:00:41.8]}
54... Be5 {[%clk 0:00:04.8]} 55. Bf8+ {[%clk 0:00:42.1]} 55... Kc6 {[%clk
0:00:05.3]} 56. Ke3 {[%clk 0:00:42.7]} 56... Kb6 {[%clk 0:00:05.5]} 57. Be7
{[%clk 0:00:42.2]} 57... Bd4+ {[%clk 0:00:05.9]} 58. Kf4 {[%clk 0:00:41.9]}
58... Ka5 {[%clk 0:00:06.8]} 59. Kxf5 {[%clk 0:00:40.9]} 59... Kb4 {[%clk
0:00:07.4]} 60. Ba2 {[%clk 0:00:39.7]} 60... e3 {[%clk 0:00:07.8]} 61. Ke4
{[%clk 0:00:39.1]} 61... e2 {[%clk 0:00:07.5]} 62. Bh4 {[%clk 0:00:38.4]} 62...
Kc3 {[%clk 0:00:08.1]} 63. Be1+ {[%clk 0:00:35.3]} 63... Kc2 {[%clk 0:00:08.4]}
64. Kf3 {[%clk 0:00:28.2]} 64... Kd1 {[%clk 0:00:08.6]} 65. Ba5 {[%clk
0:00:28.5]} 65... e1=Q {[%clk 0:00:07.1]} 66. Bxe1 {[%clk 0:00:28.6]} 66... Kxe1
{[%clk 0:00:07]} 67. Ke4 {[%clk 0:00:29.1]} 67... Kd2 {[%clk 0:00:07.4]} 68. Kd5
{[%clk 0:00:29.3]} 68... Kc3 {[%clk 0:00:07.9]} 69. Ke4 {[%clk 0:00:26.6]} 69...
Kb2 {[%clk 0:00:08.4]} 70. Bg8 {[%clk 0:00:22.6]} 70... a2 {[%clk 0:00:08.8]}
71. Bxa2 {[%clk 0:00:23]} 71... Kxa2 {[%clk 0:00:09.7]} 72. Kd3 {[%clk
0:00:23.3]} 72... Kb3 {[%clk 0:00:10.4]} 73. Kd2 {[%clk 0:00:23.8]} 73... Bb2
{[%clk 0:00:11.3]} 0-1

[Event "Early-Titled-Tuesday-Blitz-March-05-2024"]
[Site "Chess.com"]
[Date "2024.03.05"]
[Round "5"]
[White "Muracle"]
[Black "GeorgiosSouleidis"]
[Result "1-0"]
[WhiteElo "2521"]
[BlackElo "2670"]
[TimeControl "180+1"]
[EndTime "8:59:36 PST"]
[Termination "Muracle won on time"]

1. Nf3 {[%clk 0:02:41.7]} 1... Nf6 {[%clk 0:02:59.2]} 2. b3 {[%clk 0:02:41.4]}
2... d5 {[%clk 0:02:58.5]} 3. Bb2 {[%clk 0:02:42]} 3... Bf5 {[%clk 0:02:58.8]}
4. e3 {[%clk 0:02:41.9]} 4... e6 {[%clk 0:02:59]} 5. g3 {[%clk 0:02:40.4]} 5...
h6 {[%clk 0:02:59]} 6. Bg2 {[%clk 0:02:40.8]} 6... Nbd7 {[%clk 0:02:59]} 7. O-O
{[%clk 0:02:41.3]} 7... c6 {[%clk 0:02:59.5]} 8. d3 {[%clk 0:02:41.3]} 8... Bd6
{[%clk 0:02:59.6]} 9. Nbd2 {[%clk 0:02:41.1]} 9... Bh7 {[%clk 0:02:57.2]} 10. e4
{[%clk 0:02:36.7]} 10... Bc7 {[%clk 0:02:41.4]} 11. e5 {[%clk 0:02:28.9]} 11...
Ng8 {[%clk 0:02:40.6]} 12. d4 {[%clk 0:02:27.4]} 12... Ne7 {[%clk 0:02:40.7]}
13. c4 {[%clk 0:02:21.5]} 13... dxc4 {[%clk 0:02:27.1]} 14. Nxc4 {[%clk
0:02:19.7]} 14... O-O {[%clk 0:02:27.2]} 15. Nfd2 {[%clk 0:02:08.8]} 15... b5
{[%clk 0:02:04.2]} 16. Ne3 {[%clk 0:01:50]} 16... Rc8 {[%clk 0:01:54.5]} 17. Rc1
{[%clk 0:01:47.3]} 17... Bb6 {[%clk 0:01:53.7]} 18. Ne4 {[%clk 0:01:45.3]} 18...
Bxe4 {[%clk 0:01:47]} 19. Bxe4 {[%clk 0:01:46.2]} 19... Nd5 {[%clk 0:01:42.8]}
20. Bb1 {[%clk 0:01:40]} 20... Re8 {[%clk 0:01:29.3]} 21. Nxd5 {[%clk
0:01:35.5]} 21... cxd5 {[%clk 0:01:24.2]} 22. Qd3 {[%clk 0:01:35.2]} 22... Nf8
{[%clk 0:01:23.1]} 23. Ba3 {[%clk 0:01:31.2]} 23... g6 {[%clk 0:01:03.7]} 24.
Bc5 {[%clk 0:01:15.7]} 24... a6 {[%clk 0:00:46.8]} 25. b4 {[%clk 0:01:14]} 25...
Bxc5 {[%clk 0:00:29.9]} 26. dxc5 {[%clk 0:01:07.8]} 26... Kg7 {[%clk 0:00:25.2]}
27. f4 {[%clk 0:01:06.1]} 27... Nd7 {[%clk 0:00:21.1]} 28. Qd4 {[%clk
0:01:05.3]} 28... Nb8 {[%clk 0:00:16.8]} 29. Rcd1 {[%clk 0:01:01.2]} 29... Nc6
{[%clk 0:00:17.1]} 30. Qb2 {[%clk 0:01:01.8]} 30... Kh7 {[%clk 0:00:04.4]} 31.
Bd3 {[%clk 0:01:01]} 31... Qe7 {[%clk 0:00:04.6]} 32. h4 {[%clk 0:01:00.9]}
32... h5 {[%clk 0:00:04.6]} 33. Kh2 {[%clk 0:01:00.7]} 33... Rg8 {[%clk
0:00:05]} 34. a3 {[%clk 0:01:00.3]} 34... Ra8 {[%clk 0:00:05.4]} 35. Qe2 {[%clk
0:01:00.3]} 35... Qd7 {[%clk 0:00:05.4]} 36. Qxh5+ {[%clk 0:01:00.3]} 36... Kg7
{[%clk 0:00:05.2]} 37. Qg5 {[%clk 0:01:00.5]} 37... Qe7 {[%clk 0:00:04.6]} 38.
Qg4 {[%clk 0:01:00]} 38... Rh8 {[%clk 0:00:04.5]} 39. Kg2 {[%clk 0:00:59.6]}
39... Rh5 {[%clk 0:00:04.4]} 40. Qe2 {[%clk 0:00:55.5]} 40... Qb7 {[%clk
0:00:04]} 41. Qd2 {[%clk 0:00:48.6]} 41... Rah8 {[%clk 0:00:03.5]} 42. Be2
{[%clk 0:00:48.6]} 42... R5h7 {[%clk 0:00:03.3]} 43. Bf3 {[%clk 0:00:49]} 43...
Qc7 {[%clk 0:00:03.7]} 44. Rh1 {[%clk 0:00:49.1]} 44... Ne7 {[%clk 0:00:04.2]}
45. Rh2 {[%clk 0:00:43.5]} 45... Nc6 {[%clk 0:00:04.7]} 46. Rdh1 {[%clk
0:00:43.6]} 46... Ne7 {[%clk 0:00:05.2]} 47. Qd3 {[%clk 0:00:41.7]} 47... Nc6
{[%clk 0:00:03.5]} 48. h5 {[%clk 0:00:39.4]} 48... gxh5 {[%clk 0:00:03]} 49.
Bxh5 {[%clk 0:00:40.3]} 49... Kf8 {[%clk 0:00:02.5]} 50. Rh4 {[%clk 0:00:34.5]}
50... Ke7 {[%clk 0:00:01.9]} 51. Bf3 {[%clk 0:00:29]} 51... Rxh4 {[%clk
0:00:02.8]} 52. Rxh4 {[%clk 0:00:29.5]} 52... Rxh4 {[%clk 0:00:03.1]} 53. gxh4
{[%clk 0:00:29.9]} 53... Qd8 {[%clk 0:00:03.4]} 54. Qh7 {[%clk 0:00:28]} 54...
Nd4 {[%clk 0:00:03.6]} 55. Bh5 {[%clk 0:00:27.1]} 55... Qf8 {[%clk 0:00:03.5]}
56. Kf2 {[%clk 0:00:26.8]} 56... Nf5 {[%clk 0:00:03.9]} 57. Bg4 {[%clk
0:00:25.7]} 57... Nd4 {[%clk 0:00:02.9]} 58. h5 {[%clk 0:00:25.2]} 58... Nc6
{[%clk 0:00:01.4]} 59. h6 {[%clk 0:00:25.5]} 59... Ke8 {[%clk 0:00:01.9]} 60.
Bh5 {[%clk 0:00:25.7]} 60... Ne7 {[%clk 0:00:02.7]} 61. Qg7 {[%clk 0:00:25.8]}
61... Nf5 {[%clk 0:00:03]} 62. Qf6 {[%clk 0:00:12.6]} 62... Qxh6 {[%clk
0:00:03]} 63. Bxf7+ {[%clk 0:00:10.9]} 63... Kd7 {[%clk 0:00:02.1]} 64. Bxe6+
{[%clk 0:00:10.8]} 64... Kc7 {[%clk 0:00:02.3]} 65. Qxh6 {[%clk 0:00:10.4]}
65... Nxh6 {[%clk 0:00:02.4]} 66. Ke3 {[%clk 0:00:11]} 66... Kc6 {[%clk
0:00:02.5]} 67. Kd4 {[%clk 0:00:11.6]} 67... Kc7 {[%clk 0:00:01.9]} 68. Kxd5
{[%clk 0:00:12.3]} 68... Kb7 {[%clk 0:00:02]} 69. c6+ {[%clk 0:00:12.9]} 69...
Kc7 {[%clk 0:00:02.9]} 70. Kc5 {[%clk 0:00:13.6]} 70... Kb8 {[%clk 0:00:02.8]}
71. Kb6 {[%clk 0:00:13.9]} 71... Ka8 {[%clk 0:00:03.7]} 72. c7 {[%clk
0:00:12.8]} 1-0